bitfinex/quotes_SOLUSD_20220130
["timestamp","ask_amount","ask_price","bid_price","bid_amount"]
[1643577640942,0.25,91.907,91.791,42.75050219]
[1643577640943,0.25,91.899,91.791,42.75050219]
[1643577641142,3.20669142,91.899,91.791,42.75050219]
[1643577641344,15.46235531,91.898,91.791,42.75050219]
[1643577641543,107.8,91.897,91.791,42.75050219]
[1643577641743,158.52959142,91.897,91.792,22.7067]
[1643577642144,2.95669142,91.896,91.792,22.7067]
[1643577642446,0.25,91.895,91.792,22.7067]
[1643577642643,16.341,91.88,91.792,22.7067]
[1643577642942,0.25,91.879,91.792,22.7067]
[1643577643343,0.25,91.879,91.793,23.8987]
[1643577643344,2.95669142,91.879,91.793,23.8987]
[1643577643544,24.417,91.885,91.793,23.8987]
[1643577643746,16.343,91.87,91.791,42.75050219]
[1643577644144,24.417,91.885,91.791,42.75050219]
[1643577644346,24.417,91.885,91.792,0.25]
[1643577644645,24.417,91.885,91.791,42.75050219]
[1643577644846,24.417,91.885,91.792,22.5349]
[1643577645449,24.417,91.885,91.793,0.25]
[1643577645648,24.417,91.885,91.792,22.5349]
[1643577645866,54.482,91.88,91.792,22.5349]
[1643577646065,54.482,91.88,91.793,0.25]
[1643577646266,0.25,91.879,91.793,0.25]
[1643577646666,16.343,91.87,91.793,0.25]
[1643577647066,16.343,91.87,91.792,22.5349]
[1643577647267,24.417,91.885,91.792,22.5349]
[1643577647669,24.417,91.885,91.793,0.25]
[1643577648067,12.50566389,91.887,91.793,0.25]
[1643577648268,0.25,91.886,91.793,0.25]
[1643577648468,0.25,91.886,91.792,22.5349]
[1643577649070,16.341,91.88,91.792,22.5349]
[1643577649269,0.25,91.879,91.792,22.5349]
[1643577649869,6.0,91.87,91.792,22.5349]
[1643577650068,6.0,91.86,91.792,22.5349]
[1643577650271,0.25,91.859,91.792,22.5349]
[1643577651369,0.25,91.859,91.791,42.75050219]
[1643577651569,0.25,91.884,91.791,42.75050219]
[1643577652071,16.345,91.86,91.791,42.75050219]
[1643577652270,0.25,91.859,91.791,42.75050219]
[1643577652873,16.345,91.86,91.791,42.75050219]
[1643577653078,16.342,91.88,91.791,42.75050219]
[1643577653471,6.0,91.87,91.791,42.75050219]
[1643577654073,6.0,91.86,91.791,42.75050219]
[1643577654474,0.25,91.869,91.792,0.25]
[1643577654675,0.25,91.869,91.791,42.75050219]
[1643577654676,6.0,91.85,91.791,42.75050219]
[1643577654873,0.25,91.869,91.791,42.75050219]
[1643577655274,6.0,91.876,91.791,42.75050219]
[1643577655674,0.25,91.875,91.791,42.75050219]
[1643577656177,0.25,91.875,91.792,0.25]
[1643577656375,0.25,91.875,91.792,23.29]
[1643577656976,16.342,91.87,91.792,23.29]
[1643577657378,0.25,91.869,91.792,23.29]
[1643577657578,23.7552,91.886,91.792,23.04]
[1643577657983,0.25,91.885,91.792,23.04]
[1643577658480,6.0,91.876,91.792,23.04]
[1643577658779,0.25,91.875,91.792,23.04]
[1643577659781,0.25,91.875,91.793,0.25]
[1643577660185,6.0,91.876,91.8,16.338]
[1643577660483,6.0,91.876,91.801,0.25]
[1643577660881,6.0,91.876,91.802,6.0]
[1643577661083,23.7552,91.886,91.802,6.0]
[1643577661283,23.7552,91.886,91.803,22.8361]
[1643577662081,23.7552,91.886,91.811,35.20527389]
[1643577662282,23.7552,91.886,91.812,0.25]
[1643577663283,0.25,91.885,91.812,0.25]
[1643577664591,0.25,91.896,91.812,0.25]
[1643577664785,6.0,91.887,91.812,0.25]
[1643577665185,0.25,91.886,91.812,0.25]
[1643577665587,0.25,91.886,91.82,16.335]
[1643577665785,0.25,91.886,91.821,0.25]
[1643577666387,0.25,91.886,91.811,35.20527389]
[1643577666786,0.25,91.895,91.811,35.20527389]
[1643577667788,0.25,91.895,91.812,0.25]
[1643577668390,6.0,91.886,91.812,0.25]
[1643577668790,0.25,91.885,91.812,0.25]
[1643577669193,24.4244,91.896,91.813,2.49900595]
[1643577669391,70.134,91.96,91.821,6.0]
[1643577669593,2.95669142,91.926,91.814,25.92142234]
[1643577669792,2.95669142,91.926,91.811,35.20527389]
[1643577669992,17.28733408,91.925,91.811,35.20527389]
[1643577670193,15.7,91.92,91.811,35.20527389]
[1643577670393,6.0,91.915,91.811,35.20527389]
[1643577670595,16.343,91.89,91.811,35.20527389]
[1643577670894,108.05,91.889,91.811,35.20527389]
[1643577671092,0.25,91.889,91.811,35.20527389]
[1643577671293,3.20669142,91.889,91.811,35.20527389]
[1643577671495,2.95669142,91.888,91.775,22.5077]
[1643577671694,2.95669142,91.888,91.776,3.02625827]
[1643577671695,16.341,91.88,91.776,3.02625827]
[1643577671895,0.25,91.879,91.776,0.25]
[1643577672528,16.341,91.88,91.776,41.85234664]
[1643577672724,97.36255653,92.025,91.776,41.85234664]
[1643577672725,2.95669142,91.91,91.791,36.69154362]
[1643577672924,16.5088,91.929,91.792,153.5577]
[1643577673125,24.6467,91.925,91.802,6.0]
[1643577673324,24.6467,91.925,91.803,0.25]
[1643577673527,24.6467,91.925,91.803,108.05]
[1643577673824,24.6467,91.925,91.804,3.02481827]
[1643577674024,2.95669142,91.924,91.805,39.21363031]
[1643577674525,2.95669142,91.924,91.803,24.6415]
[1643577674526,6.0,91.914,91.821,34.21295166]
[1643577674725,6.0,91.914,91.822,24.1046]
[1643577674925,0.25,91.913,91.822,24.3546]
[1643577675325,6.0,91.914,91.823,22.8504]
[1643577675524,6.0,91.904,91.823,22.8504]
[1643577675724,23.6417,91.942,91.824,0.25]
[1643577676025,23.6417,91.942,91.833,6.0]
[1643577676228,23.6417,91.942,91.84,15.7]
[1643577676424,16.327,91.96,91.84,15.7]
[1643577676629,16.6598,91.999,91.851,33.48372291]
[1643577676924,2.95951347,91.998,91.868,0.30524299]
[1643577677125,2.95951347,91.998,91.88,15.7]
[1643577677326,4.48871037,92.047,91.896,0.3176223]
[1643577677523,46.5241,92.069,91.91,15.7]
[1643577677524,2.96099408,92.048,91.91,15.7]
[1643577677724,2.96099408,92.049,91.911,82.95545225]
[1643577677925,2.96099408,92.049,91.92,6.0]
[1643577678124,4.48871037,92.06,91.93,15.7]
[1643577678326,6.0,92.039,91.951,107.8]
[1643577678525,6.0,92.058,91.952,39.30511223]
[1643577678827,6.0,92.058,91.952,39.55511223]
[1643577679025,5.90709557,92.057,91.952,39.30511223]
[1643577679224,2.95040415,92.056,91.952,39.30511223]
[1643577679425,16.312,92.04,91.952,39.30511223]
[1643577679827,16.312,92.04,91.953,0.25]
[1643577680030,39.081,92.07,91.953,0.25]
[1643577680433,5.90085344,92.068,91.952,39.30511223]
[1643577680630,2.94416202,92.067,91.952,39.30511223]
[1643577680832,107.8,92.059,91.952,39.30511223]
[1643577681232,0.25,92.058,91.952,39.30511223]
[1643577681441,3.20669142,92.058,91.952,39.30511223]
[1643577681731,2.95669142,92.057,91.952,39.30511223]
[1643577681931,2.95669142,92.057,91.96,16.311]
[1643577682131,0.25,92.056,91.96,16.311]
[1643577682331,0.25,92.056,91.961,0.25]
[1643577682531,6.0,92.047,91.961,0.25]
[1643577682931,0.25,92.046,91.961,0.25]
[1643577683130,0.25,92.046,91.952,39.30511223]
[1643577683131,16.312,92.04,91.952,39.30511223]
[1643577683331,0.25,92.039,91.952,39.30511223]
[1643577683532,3.20669142,92.039,91.953,0.25]
[1643577683733,0.25,92.039,91.953,0.25]
[1643577684432,16.311,92.05,91.96,16.311]
[1643577684633,0.25,92.068,91.96,16.311]
[1643577684832,23.381,92.07,91.972,107.8]
[1643577685032,0.2,92.099,91.982,6.0]
[1643577685232,48.0472,92.119,91.983,107.8]
[1643577685433,3.13640783,92.118,91.983,0.25]
[1643577685734,2.93640783,92.117,92.001,40.26846189]
[1643577685933,5.89309925,92.117,92.001,40.26846189]
[1643577686132,2.95669142,92.116,92.002,0.25]
[1643577686533,16.3,92.11,92.01,16.301]
[1643577686735,0.2,92.109,92.01,16.301]
[1643577686934,0.2,92.109,92.011,2.75666524]
[1643577687135,0.2,92.139,92.011,2.75666524]
[1643577687136,0.2,92.128,92.023,107.8]
[1643577687332,0.4,92.139,92.03,13.06]
[1643577687533,2.93671191,92.176,92.04,6.0]
[1643577687833,16.287,92.19,92.08,16.286]
[1643577688032,16.287,92.19,92.081,32.72501253]
[1643577688033,0.5,92.189,92.081,32.72501253]
[1643577688233,0.5,92.189,92.081,32.97501253]
[1643577688634,6.0,92.18,92.081,32.97501253]
[1643577688835,22.288,92.18,92.09,16.286]
[1643577689034,0.4,92.179,92.09,16.286]
[1643577689237,6.0,92.18,92.091,0.25]
[1643577689434,0.29659316,92.203,92.081,32.72501253]
[1643577689735,16.285,92.2,92.081,32.72501253]
[1643577689934,13.06,92.19,92.081,32.72501253]
[1643577690135,54.317,92.17,92.081,32.72501253]
[1643577690335,0.4,92.169,92.081,32.72501253]
[1643577690940,9.07443158,92.18,92.081,32.72501253]
[1643577691137,2.95669142,92.168,92.081,32.72501253]
[1643577691742,3.45669142,92.188,92.081,32.72501253]
[1643577692239,16.292,92.16,92.081,32.72501253]
[1643577692438,0.4,92.159,92.081,32.72501253]
[1643577692641,0.65,92.159,92.05,29.353]
[1643577692839,3.20669142,92.159,92.05,29.353]
[1643577693039,2.95669142,92.158,92.05,29.353]
[1643577693340,0.25,92.157,92.05,29.353]
[1643577693641,2.95669142,92.156,92.051,35.68278902]
[1643577693839,16.294,92.15,92.051,35.68278902]
[1643577694040,0.25,92.155,92.051,35.68278902]
[1643577694041,0.4,92.149,92.051,35.68278902]
[1643577694246,0.25,92.149,92.051,35.68278902]
[1643577694442,0.25,92.155,92.051,35.68278902]
[1643577695044,16.296,92.14,92.051,35.68278902]
[1643577695243,0.4,92.139,92.051,35.68278902]
[1643577695444,3.60669142,92.139,92.02,13.06]
[1643577695644,3.20669142,92.139,92.02,13.06]
[1643577695843,3.20669142,92.139,92.013,23.241]
[1643577696045,2.95669142,92.138,92.013,23.241]
[1643577696243,0.25,92.139,92.014,107.8]
[1643577696445,0.25,92.137,92.015,35.7971853]
[1643577696647,0.25,92.139,92.015,143.5971853]
[1643577696845,0.25,92.139,92.02,13.06]
[1643577697045,0.25,92.139,92.021,107.8]
[1643577697244,0.65,92.139,92.021,2.75666524]
[1643577697450,0.65,92.139,92.022,2.50666524]
[1643577697845,0.65,92.139,92.023,0.25]
[1643577698045,0.25,92.139,92.023,0.25]
[1643577698274,0.65,92.147,92.024,2.50666524]
[1643577698446,6.0,92.138,92.024,2.50666524]
[1643577698645,6.0,92.138,92.025,0.25]
[1643577698847,0.25,92.137,92.03,13.06]
[1643577699045,16.297,92.13,92.04,16.296]
[1643577699245,0.2,92.129,92.04,16.296]
[1643577699449,0.45,92.129,92.041,0.25]
[1643577699646,0.4,92.147,92.041,2.75670109]
[1643577699846,0.4,92.175,92.042,107.8]
[1643577700046,0.4,92.175,92.053,107.8]
[1643577700247,0.4,92.175,92.06,13.06]
[1643577700647,0.4,92.175,92.061,0.25]
[1643577701046,16.291,92.17,92.061,0.25]
[1643577701346,0.65,92.169,92.061,0.25]
[1643577702147,0.25,92.169,92.061,0.25]
[1643577702546,0.65,92.175,92.061,0.25]
[1643577702846,108.45,92.175,92.061,0.25]
[1643577703045,16.291,92.16,92.061,0.25]
[1643577703246,0.4,92.159,92.061,0.25]
[1643577703447,0.65,92.159,92.061,0.25]
[1643577704648,0.65,92.159,92.061,108.05]
[1643577704951,0.65,92.159,92.061,0.25]
[1643577706246,16.293,92.15,92.06,13.06]
[1643577706447,16.293,92.15,92.052,36.31532117]
[1643577706448,0.4,92.149,92.052,36.31532117]
[1643577706650,0.65,92.149,92.052,36.31532117]
[1643577706847,0.25,92.149,92.052,36.31532117]
[1643577707646,2.94428587,92.148,92.052,36.31532117]
[1643577707848,0.25,92.147,92.052,36.31532117]
[1643577708048,16.297,92.13,92.052,36.31532117]
[1643577708248,0.2,92.129,92.052,36.31532117]
[1643577708450,0.45,92.129,92.052,36.31532117]
[1643577708849,0.45,92.129,92.03,13.06]
[1643577709050,16.299,92.12,92.02,13.06]
[1643577709249,0.2,92.119,92.0,2.50670109]
[1643577709450,46.3621,92.119,92.0,2.50670109]
[1643577709649,46.3621,92.119,91.99,13.06]
[1643577709650,0.2,92.118,91.99,13.06]
[1643577709852,2.94675018,92.117,91.991,45.72105155]
[1643577710249,6.0,92.107,91.991,45.72105155]
[1643577710449,2.94675018,92.106,91.991,45.72105155]
[1643577710651,3.19675018,92.106,91.991,45.72105155]
[1643577710854,2.94675018,92.105,91.991,45.72105155]
[1643577711150,16.303,92.1,91.992,2.75670109]
[1643577711353,0.45,92.099,91.992,2.75670109]
[1643577711551,0.25,92.099,91.993,2.50670109]
[1643577711750,0.25,92.099,91.992,0.25]
[1643577712152,2.95499603,92.098,91.992,0.25]
[1643577712354,0.25,92.097,91.992,0.25]
[1643577712554,2.95499603,92.096,91.992,0.25]
[1643577712954,0.25,92.095,91.992,0.25]
[1643577713152,16.305,92.09,91.992,0.25]
[1643577713352,0.45,92.089,91.993,2.50670109]
[1643577713553,0.25,92.089,91.993,2.50670109]
[1643577713751,0.25,92.089,91.994,0.25]
[1643577714455,16.304,92.09,92.0,16.303]
[1643577714652,0.45,92.089,91.983,2.50670109]
[1643577714855,2.95898029,92.088,91.96,13.06]
[1643577715152,2.93671191,92.081,91.96,13.06]
[1643577715352,2.93671191,92.074,91.961,24.1891]
[1643577715554,2.93671191,92.073,91.961,24.1891]
[1643577715753,3.18671191,92.073,91.962,33.65136787]
[1643577715954,1.47891386,92.047,91.962,33.65136787]
[1643577716154,1.47891386,92.047,91.963,0.25]
[1643577716353,0.25,92.046,91.963,0.25]
[1643577717255,0.25,92.049,91.963,0.25]
[1643577717457,0.25,92.049,91.97,16.308]
[1643577717854,0.25,92.049,91.971,0.25]
[1643577718255,0.25,92.05,91.971,0.25]
[1643577718755,0.25,92.052,91.971,0.25]
[1643577718955,0.25,92.052,91.961,24.1891]
[1643577718956,0.25,92.052,91.981,43.76883913]
[1643577719255,63.42743158,92.1,91.981,43.76883913]
[1643577719256,1.47891386,92.068,91.991,6.0]
[1643577719455,1.47891386,92.074,91.992,107.8]
[1643577719656,1.47891386,92.075,92.001,107.8]
[1643577719856,1.47891386,92.075,92.01,16.3]
[1643577720063,1.47891386,92.075,92.02,6.0]
[1643577720262,1.47891386,92.075,92.022,35.95838588]
[1643577720460,1.47891386,92.094,92.022,35.95838588]
[1643577720661,1.47891386,92.107,92.023,50.01700109]
[1643577720891,1.47891386,92.105,92.024,107.8]
[1643577721092,1.47891386,92.105,92.04,16.294]
[1643577721297,1.47891386,92.106,92.041,46.07622815]
[1643577721490,1.47891386,92.107,92.041,58.55622815]
[1643577721691,0.4,92.139,92.041,58.55622815]
[1643577721692,1.47891386,92.106,92.041,58.55622815]
[1643577721889,1.47891386,92.108,92.041,58.55622815]
[1643577722090,2.95639848,92.138,92.041,58.30622815]
[1643577722091,0.25,92.107,92.041,58.30622815]
[1643577722289,6.0,92.098,92.041,58.30622815]
[1643577722490,1.47891386,92.102,92.041,58.30622815]
[1643577722691,0.25,92.107,92.042,0.25]
[1643577722692,1.47891386,92.103,92.042,0.25]
[1643577723289,1.47891386,92.104,92.042,0.25]
[1643577723590,1.47891386,92.105,92.042,0.25]
[1643577723789,0.25,92.104,92.042,0.25]
[1643577723990,1.47891386,92.103,92.042,0.25]
[1643577724395,1.47891386,92.106,92.042,0.25]
[1643577724791,1.47891386,92.107,92.042,0.25]
[1643577725193,1.47891386,92.107,92.05,16.293]
[1643577725391,1.47891386,92.107,92.051,0.25]
[1643577725591,6.0,92.097,92.051,108.05]
[1643577725791,0.4,92.157,92.051,108.05]
[1643577725792,1.47891386,92.114,92.051,108.05]
[1643577725993,1.47891386,92.116,92.051,108.05]
[1643577726593,0.25,92.115,92.051,108.05]
[1643577726992,1.72891386,92.115,92.06,16.291]
[1643577727193,1.72891386,92.116,92.061,35.95838588]
[1643577727394,1.72891386,92.116,92.061,36.20838588]
[1643577727593,1.47891386,92.115,92.061,36.20838588]
[1643577727800,0.25,92.114,92.061,36.20838588]
[1643577727994,1.72891386,92.114,92.061,36.20838588]
[1643577728194,0.25,92.114,92.061,36.20838588]
[1643577728997,6.0,92.107,92.061,35.95838588]
[1643577729395,0.25,92.106,92.061,35.95838588]
[1643577729597,1.72891386,92.106,92.061,35.95838588]
[1643577729795,1.47891386,92.103,92.061,35.95838588]
[1643577730299,1.47891386,92.096,92.061,35.95838588]
[1643577730497,6.0,92.093,92.061,35.95838588]
[1643577731197,1.47891386,92.099,92.061,35.95838588]
[1643577731401,1.47891386,92.102,92.062,0.25]
[1643577731596,1.47891386,92.103,92.062,0.25]
[1643577731798,0.25,92.101,92.062,0.25]
[1643577732198,1.72891386,92.101,92.062,0.25]
[1643577732396,0.25,92.101,92.062,0.25]
[1643577732899,0.25,92.101,92.061,35.95838588]
[1643577733099,1.47891386,92.096,92.061,35.95838588]
[1643577733297,0.25,92.095,92.061,35.95838588]
[1643577733997,1.47891386,92.093,92.061,35.95838588]
[1643577734198,1.47891386,92.09,92.061,35.95838588]
[1643577734399,3.90133614,92.142,92.061,35.95838588]
[1643577734598,107.8,92.146,92.062,0.25]
[1643577734599,6.0,92.132,92.062,0.25]
[1643577734798,2.95999955,92.131,92.062,0.25]
[1643577734998,6.0,92.121,92.062,0.25]
[1643577735197,16.297,92.13,92.062,0.25]
[1643577735799,2.9610255,92.129,92.062,0.25]
[1643577736299,0.25,92.128,92.062,0.25]
[1643577736699,6.0,92.119,92.062,0.25]
[1643577736902,0.25,92.118,92.062,0.25]
[1643577737100,6.0,92.109,92.062,0.25]
[1643577737301,0.25,92.108,92.062,0.25]
[1643577737501,0.25,92.118,92.062,0.25]
[1643577738508,0.25,92.119,92.062,11.91]
[1643577739106,0.2,92.144,92.062,11.91]
[1643577739305,0.2,92.144,92.072,6.0]
[1643577739534,2.95947145,92.143,92.073,107.8]
[1643577739704,2.95947145,92.143,92.073,0.25]
[1643577739904,2.95947145,92.156,92.073,0.25]
[1643577740904,2.95947145,92.156,92.08,16.288]
[1643577741306,2.95947145,92.156,92.081,46.07622815]
[1643577741507,2.95947145,92.177,92.081,46.07622815]
[1643577741807,2.95947145,92.177,92.082,24.2444]
[1643577742006,2.95947145,92.177,92.083,107.8]
[1643577742207,2.95947145,92.177,92.09,16.286]
[1643577742408,3.20947145,92.176,92.091,0.25]
[1643577742609,2.95947145,92.175,92.091,0.25]
[1643577742811,6.0,92.166,92.091,0.25]
[1643577743013,2.95947145,92.165,92.091,0.25]
[1643577743212,3.20947145,92.165,92.091,0.25]
[1643577743611,2.95947145,92.164,92.083,0.25]
[1643577743812,0.25,92.163,92.083,0.25]
[1643577744010,0.25,92.163,92.083,107.55]
[1643577744011,2.95947145,92.162,92.083,107.55]
[1643577744211,2.95947145,92.162,92.083,107.8]
[1643577744410,0.25,92.161,92.083,107.8]
[1643577744618,19.25047145,92.16,92.083,107.8]
[1643577744812,3.40947145,92.159,92.083,107.8]
[1643577745013,2.95947145,92.158,92.083,107.8]
[1643577745415,0.25,92.157,92.083,107.8]
[1643577745622,2.95947145,92.156,92.09,16.287]
[1643577745815,0.25,92.155,92.091,107.8]
[1643577746015,6.0,92.166,92.101,6.0]
[1643577746216,0.25,92.165,92.101,6.0]
[1643577746415,3.20908775,92.165,92.101,6.0]
[1643577746617,2.95908775,92.164,92.102,0.25]
[1643577746816,0.25,92.163,92.102,0.25]
[1643577747048,0.25,92.163,92.091,107.55]
[1643577747249,2.95872198,92.162,92.102,0.25]
[1643577747451,0.25,92.163,92.102,0.25]
[1643577748052,16.287,92.18,92.091,107.55]
[1643577748252,3.16234856,92.179,92.092,0.25]
[1643577748452,2.96234856,92.178,92.092,0.25]
[1643577748952,0.25,92.177,92.092,0.25]
[1643577749153,2.96234856,92.176,92.092,0.25]
[1643577749351,0.25,92.175,92.083,0.25]
[1643577749552,2.96234856,92.174,92.083,0.25]
[1643577749951,0.25,92.173,92.083,0.25]
[1643577750152,6.0,92.164,92.083,0.25]
[1643577750352,16.29,92.16,92.083,0.25]
[1643577750555,6.0,92.154,92.083,0.25]
[1643577750954,3.21234856,92.153,92.083,0.25]
[1643577751152,2.96234856,92.152,92.083,0.25]
[1643577751355,0.25,92.151,92.09,16.287]
[1643577751852,2.96234856,92.15,92.09,16.287]
[1643577752252,0.25,92.149,92.09,16.287]
[1643577752452,2.96234856,92.148,92.09,16.287]
[1643577752654,2.96234856,92.148,92.07,31.94]
[1643577752851,2.96234856,92.148,92.083,0.25]
[1643577752852,0.25,92.147,92.083,0.25]
[1643577753057,2.96234856,92.148,92.083,0.25]
[1643577753256,2.96234856,92.146,92.083,0.25]
[1643577753456,2.96234856,92.153,92.083,0.25]
[1643577753652,2.96234856,92.153,92.064,24.3275]
[1643577754054,2.96234856,92.158,92.064,24.3275]
[1643577754254,0.25,92.157,92.064,24.3275]
[1643577754454,16.292,92.15,92.064,24.3275]
[1643577754655,3.16234856,92.149,92.064,24.3275]
[1643577754856,3.41234856,92.149,92.064,24.3275]
[1643577755055,2.96234856,92.148,92.064,24.3275]
[1643577755255,0.25,92.147,92.064,24.3275]
[1643577755457,2.96234856,92.146,92.064,24.3275]
[1643577755857,0.25,92.145,92.064,24.3275]
[1643577756055,16.295,92.14,92.064,24.3275]
[1643577756256,3.16234856,92.139,92.064,24.3275]
[1643577756455,2.96234856,92.138,92.064,24.3275]
[1643577756855,0.25,92.137,92.064,24.3275]
[1643577757257,2.96234856,92.136,92.064,24.3275]
[1643577757658,0.25,92.135,92.064,24.3275]
[1643577757856,16.296,92.13,92.064,24.3275]
[1643577758056,2.96234856,92.129,92.064,24.3275]
[1643577758256,3.21234856,92.129,92.064,24.3275]
[1643577758459,2.96234856,92.128,92.064,24.3275]
[1643577758659,2.96234856,92.128,92.065,34.81134173]
[1643577758857,0.25,92.127,92.065,34.81134173]
[1643577759055,2.96234856,92.126,92.065,34.81134173]
[1643577759257,0.25,92.125,92.065,34.81134173]
[1643577759659,2.96234856,92.124,92.065,34.81134173]
[1643577759859,0.25,92.123,92.066,0.25]
[1643577760057,2.96234856,92.122,92.066,0.25]
[1643577760257,0.25,92.121,92.066,24.6732]
[1643577760459,2.96234856,92.12,92.066,24.6732]
[1643577760857,0.25,92.119,92.066,24.6732]
[1643577761558,0.25,92.119,92.066,0.25]
[1643577761859,2.96610058,92.118,92.03,2.50670109]
[1643577762058,2.96610058,92.118,92.031,46.843]
[1643577762258,0.25,92.129,92.01,54.323]
[1643577762259,0.25,92.117,92.015,2.50670109]
[1643577762459,2.96610058,92.116,91.99,15.65]
[1643577762658,2.96610058,92.116,91.998,49.34970109]
[1643577762859,16.299,92.11,92.02,16.299]
[1643577763059,2.96610058,92.109,92.021,107.8]
[1643577763258,3.21610058,92.109,92.022,23.7741]
[1643577763458,2.96610058,92.108,92.022,23.7741]
[1643577763665,2.96610058,92.108,92.023,0.25]
[1643577763859,0.25,92.107,92.023,0.25]
[1643577764060,2.96610058,92.106,92.03,16.298]
[1643577764259,0.25,92.105,92.031,0.25]
[1643577764860,6.0,92.1,92.031,0.25]
[1643577765360,0.25,92.099,92.031,0.25]
[1643577766162,0.25,92.099,92.03,16.298]
[1643577766560,0.25,92.099,91.952,5.0]
[1643577766561,0.25,92.099,92.014,33.95802631]
[1643577766761,2.96069923,92.098,92.014,33.95802631]
[1643577767261,6.0,92.088,92.014,33.95802631]
[1643577767761,3.21069923,92.087,92.014,33.95802631]
[1643577767960,0.25,92.087,92.014,33.95802631]
[1643577768161,2.95747008,92.086,92.014,33.95802631]
[1643577768362,16.307,92.07,92.014,33.95802631]
[1643577768764,0.25,92.069,92.014,33.95802631]
[1643577769864,0.25,92.069,92.015,0.25]
[1643577770262,0.25,92.088,92.015,0.25]
[1643577770664,6.0,92.079,92.015,0.25]
[1643577770863,0.25,92.078,92.02,16.3]
[1643577771063,6.0,92.069,92.02,16.3]
[1643577771268,0.25,92.068,92.02,16.3]
[1643577771465,24.4736,92.099,92.021,2.50670109]
[1643577771663,6.0,92.089,92.021,2.50670109]
[1643577772063,6.0,92.089,92.02,16.3]
[1643577772266,6.0,92.089,92.021,0.25]
[1643577772469,28.3801788,92.112,92.04,16.297]
[1643577772664,24.4065,92.129,92.04,16.297]
[1643577772863,2.95648775,92.128,92.042,46.14345681]
[1643577773290,2.95648775,92.128,92.043,0.25]
[1643577773464,16.297,92.12,92.043,0.25]
[1643577774466,16.297,92.12,92.05,16.295]
[1643577774668,0.2,92.138,92.05,16.295]
[1643577774867,0.2,92.163,92.061,107.8]
[1643577775069,2.95849676,92.162,92.071,6.0]
[1643577775267,0.2,92.165,92.072,35.89115722]
[1643577775268,2.95849676,92.164,92.072,35.89115722]
[1643577775668,2.95849676,92.164,92.073,23.5148]
[1643577775874,0.25,92.163,92.074,0.25]
[1643577776068,6.0,92.154,92.08,16.29]
[1643577776269,0.25,92.153,92.081,0.25]
[1643577777769,6.0,92.144,92.081,0.25]
[1643577777970,16.291,92.15,92.081,0.25]
[1643577778170,0.2,92.149,92.081,0.25]
[1643577778370,0.45,92.149,92.081,0.25]
[1643577779374,0.45,92.159,92.081,0.25]
[1643577779773,6.0,92.15,92.081,0.25]
[1643577780175,0.25,92.149,92.081,0.25]
[1643577782794,0.45,92.159,92.081,0.25]
[1643577783896,0.2,92.159,92.09,16.289]
[1643577784096,6.0,92.169,92.101,41.16312494]
[1643577784300,6.0,92.169,92.102,0.25]
[1643577784499,6.0,92.169,92.111,6.0]